fUSD/lending_fUSD_20241021
["ID","MTS","AMOUNT","RATE_DAILY","PERIOD"]
[340563156,1729480246222,-4000.0,0.000243,8]
[340563157,1729480246231,-150.0,0.00024313,2]
[340563158,1729480246240,-150.0,0.00024316,2]
[340563159,1729480246249,-150.0,0.00024316,2]
[340563160,1729480246258,-150.0,0.0002432,2]
[340563161,1729480246267,-150.0,0.0002432,2]
[340563162,1729480246276,-150.0,0.00024322,2]
[340563163,1729480246285,-150.0,0.00024327,2]
[340563164,1729480246294,-150.0,0.00024337,2]
[340563165,1729480246304,-150.0,0.00024342,2]
[340563166,1729480246313,-2762.0372128,0.00024343,2]
[340563167,1729480246323,-150.0,0.00024344,2]
[340563168,1729480246332,-150.0,0.00024348,2]
[340563169,1729480246341,-150.0,0.00024349,2]
[340563170,1729480246350,-150.0,0.00024349,2]
[340563171,1729480246360,-150.0,0.0002435,2]
[340563172,1729480246369,-150.0,0.00024368,2]
[340563173,1729480246378,-150.0,0.00024371,2]
[340563174,1729480246387,-150.0,0.00024372,2]
[340563175,1729480246396,-500.0,0.00024373,2]
[340563176,1729480246405,-150.0,0.00024375,2]
[340563177,1729480246414,-150.0,0.0002438,2]
[340563178,1729480246423,-150.0,0.0002438,2]
[340563179,1729480246433,-150.0,0.00024381,2]
[340563180,1729480246442,-59180.8075,0.00024382,2]
[340563181,1729480246451,-150.0,0.00024382,2]
[340563182,1729480246460,-150.0,0.00024382,2]
[340563183,1729480246469,-160.97566735,0.00024382,2]
[340563184,1729480246478,-150.0,0.00024384,2]
[340563185,1729480246487,-150.0,0.00024397,2]
[340563186,1729480246497,-150.0,0.00024398,2]
[340563187,1729480246506,-150.0,0.00024399,2]
[340563188,1729480246515,-7500.0,0.00024399,2]
[340563189,1729480246524,-239.07060847,0.000244,2]
[340563190,1729480246533,-6100.0,0.000244,8]
[340563191,1729480246542,-150.0,0.00024403,2]
[340563192,1729480246551,-2762.0372128,0.00024404,2]
[340563193,1729480246561,-150.0,0.00024412,2]
[340563194,1729480246570,-150.0,0.00024421,2]
[340563195,1729480246579,-172.04022124,0.00024426,2]
[340563196,1729480246588,-150.0,0.00024426,2]
[340563197,1729480246597,-150.0,0.00024435,2]
[340563198,1729480246610,-150.0,0.00024435,2]
[340563199,1729480246620,-150.0,0.00024448,2]
[340563200,1729480246629,-150.0,0.0002445,2]
[340563201,1729480246638,-150.0,0.00024454,2]
[340563202,1729480246647,-2762.0372128,0.00024465,2]
[340563203,1729480246657,-150.0,0.00024466,2]
[340563204,1729480246665,-500.51353462,0.00024473,2]
[340563205,1729480246674,-510.05574393,0.00024473,2]
[340563206,1729480246683,-150.0,0.00024477,2]
[340563207,1729480246693,-12879.6675129,0.00024479,4]
[340563208,1729480246701,-29749.98624038,0.00024479,4]
[340563209,1729480392568,250.0,0.0001,2]
[340563213,1729480534168,167.2,0.00010959,2]
[340563220,1729481028209,151.94,0.00010959,2]
[340563222,1729481155343,216.85380744,6.94e-05,2]
[340563223,1729481162478,300.0,0.00010999,2]
[340563224,1729481191673,500.0,0.00010999,2]
[340563225,1729481191719,335.18733174,0.00010999,2]
[340563226,1729481223264,1400.0,0.000108,3]
[340563227,1729481225573,2800.0,0.000109,3]
[340563238,1729481431859,-830.00583809,0.00011,2]
[340563239,1729481431871,-306.48999997,0.00011,2]
[340563246,1729481431996,-500.30653763,0.00011,2]
[340563247,1729481432007,-2704.11559046,0.00011,2]
[340563248,1729481432133,-6029.01500105,0.00011,2]
[340563258,1729481437875,-15531.15986822,0.00011,2]
[340563259,1729481438022,-4314.98017366,0.00011,2]
[340563260,1729481438034,-443.81585153,0.00011,2]
[340563261,1729481438044,-2793.44753027,0.00011,2]
[340563262,1729481438065,-902.44020382,0.00011,2]
[340563263,1729481438078,-276.14857609,0.00011,2]
[340563264,1729481438165,-1732.37999999,0.00011,2]
[340563265,1729481438177,-697.22222227,0.00011,2]
[340563266,1729481438189,-574.98736815,0.00011,2]
[340563267,1729481438306,-343.65982613,0.00011,2]
[340563268,1729481438318,-541.90799385,0.00011,2]
[340563273,1729481439965,-547.34185976,0.00011,2]
[340563274,1729481439977,-552.33090042,0.00011,2]
[340563275,1729481439988,-1064.4559759,0.00011,2]
[340563276,1729481440000,-986.08687666,0.00011,2]
[340563277,1729481440012,-377.37051497,0.00011,2]
[340563278,1729481440025,-32832.40933508,0.00011,2]
[340563279,1729481440115,-488.34636109,0.00011,2]
[340563280,1729481440127,-429.15446819,0.00011,2]
[340563281,1729481440139,-4854.5,0.00011,2]
[340563282,1729481440153,-1996.01473461,0.00011,2]
[340563283,1729481440164,-448.41966153,0.00011,2]
[340563289,1729481443201,-514.20346541,0.00011,2]
[340563290,1729481443330,-39596.31609722,0.00011,2]
[340563291,1729481443501,-7024.43178761,0.00011,2]
[340563297,1729481446188,-3561.9738,0.00011,2]
[340563304,1729481485607,160.97566734,0.000109,2]
[340563306,1729481511575,-72507.0,0.00011,2]
[340563307,1729481537958,609.83429103,0.00010999,2]
[340563308,1729481567934,-64283.65785919,0.00011,2]
[340563311,1729481834129,400.0,0.00011,3]
[340563312,1729482194871,150.0,0.0001,2]
[340563313,1729482194893,100.0,0.0001,2]
[340563315,1729482453591,1200.0,0.000108,3]
[340563316,1729482455882,2400.0,0.000109,3]
[340563324,1729482632425,-16.27273759,0.0001078,2]
[340563325,1729482632437,-637.63726241,0.0001078,2]
[340563326,1729482632446,-150.0,0.00010877,2]
[340563327,1729482632455,-150.0,0.00010899,2]
[340563328,1729482632464,-5032.5213,0.000109,2]
[340563329,1729482632473,-400.0,0.000109,2]
[340563330,1729482632482,-172.04022122,0.000109,2]
[340563331,1729482632491,-159.38040564,0.000109,2]
[340563332,1729482632500,-2275.88700534,0.000109,2]
[340563333,1729482632509,-153.0,0.00010959,2]
[340563334,1729482632518,-159.55,0.00010959,2]
[340563335,1729482632527,-1000.0,0.00010999,2]
[340563336,1729482632536,-1759.54539663,0.00010999,2]
[340563337,1729482632545,-4295.9546573,0.00011,2]
[340563338,1729482632556,-1981.09,0.00011,2]
[340563339,1729482632567,-136899.99999999,0.00011,2]
[340563340,1729482632579,-500.0,0.00011,2]
[340563341,1729482632590,-2527.75,0.00011,2]
[340563343,1729482638376,-416.98162008,0.00011,2]
[340563344,1729482638389,-351.38143416,0.00011,2]
[340563347,1729482639923,-183842.60820649,0.00011,2]
[340563348,1729482639935,-3469.13831216,0.00011,2]
[340563349,1729482640064,-574.0,0.00011,2]
[340563350,1729482640152,-542.2,0.00011,2]
[340563354,1729482642895,-1650.62054007,0.00011,2]
[340563355,1729482643064,-4667.7622301,0.00011,2]
[340563356,1729482643179,-487.18797358,0.00011,2]
[340563357,1729482643192,-5188.2372014,0.00011,2]
[340563358,1729482645900,-5988.73650659,0.00011,2]
[340563359,1729482645912,-806.41047797,0.00011,2]
[340563360,1729482645923,-6994.55513383,0.00011,2]
[340563361,1729482646083,-56724.10901826,0.00011,2]
[340563362,1729482646190,-456.48229995,0.00011,2]
[340563378,1729483277628,50.0,0.00010157,2]
[340563379,1729483277659,270.57725729,0.00010157,2]
[340563380,1729483277691,250.0,0.00010157,2]
[340563381,1729483277728,316.77274271,0.00010157,2]
[340563391,1729483637984,1200.0,0.000109,3]
[340563395,1729483780456,483.22725729,9.338e-05,2]
[340563396,1729483780477,578.18274271,9.338e-05,2]
[340563401,1729483832059,-294.02406354,0.00010834,2]
[340563402,1729483832281,-434.937297,0.00010844,2]
[340563403,1729483832291,-636.60914039,0.00010899,2]
[340563404,1729483832300,-24515.02094712,0.00010899,2]
[340563405,1729483832311,-300.0,0.00010899,2]
[340563406,1729483832320,-300.0,0.00010899,2]
[340563407,1729483832329,-1083.9308,0.000109,2]
[340563408,1729483832338,-161.55979985,0.000109,2]
[340563409,1729483832347,-4998.72095156,0.000109,2]
[340563411,1729483832357,-183.38995681,0.000109,2]
[340563413,1729483832366,-158.65,0.00010959,2]
[340563414,1729483832375,-162.9,0.00010959,2]
[340563416,1729483832385,-769.75,0.00010959,2]
[340563419,1729483832397,-151.94,0.00010959,2]
[340563421,1729483832407,-175.00320586,0.0001099,2]
[340563422,1729483832417,-150.0,0.00010999,2]
[340563423,1729483832426,-500.0,0.00010999,2]
[340563425,1729483832436,-602.02835538,0.00010999,2]
[340563426,1729483832446,-500.0,0.00010999,2]
[340563427,1729483832454,-333.84566603,0.00010999,2]
[340563428,1729483832464,-500.0,0.00010999,2]
[340563429,1729483832473,-500.0,0.00010999,2]
[340563430,1729483832483,-546.13057674,0.00010999,2]
[340563431,1729483832492,-500.0,0.00010999,2]
[340563432,1729483832501,-574592.43288969,0.00011,2]
[340563433,1729483832513,-82982.30087,0.00011,2]
[340563434,1729483832524,-38650.54500559,0.00011,2]
[340563435,1729483832536,-44908.71800326,0.00011,2]
[340563436,1729483832552,-1491.79775341,0.00011,2]
[340563442,1729483840231,-500.00813981,0.00011,2]
[340563457,1729483843126,-1403.1914805,0.00011,2]
[340563463,1729483846068,-2633.52661891,0.00011,2]
[340563557,1729483999370,221.81725729,0.0001,2]
[340563558,1729483999392,28.18274271,0.0001,2]
[340563559,1729484285021,181.81725729,8.899e-05,2]
[340563560,1729484285064,876.23274271,8.899e-05,2]
[340563561,1729484370822,4917.03,0.00010103,2]
[340563562,1729484382463,150.0,0.00010103,2]
[340563563,1729484382487,85.95,0.00010103,2]
[340563564,1729484479210,1105.18,0.00010112,2]
[340563566,1729484510784,150.0,0.00010114,2]
[340563567,1729484510805,50.0,0.00010114,2]
[340563568,1729484513791,100.0,0.00010114,2]
[340563569,1729484513812,150.0,0.00010114,2]
[340563570,1729484513832,106.37,0.00010114,2]
[340563571,1729484626853,43.63,0.0001014,2]
[340563572,1729484626874,150.0,0.0001014,2]
[340563573,1729484626894,150.0,0.0001014,2]
[340563574,1729484626915,81.79,0.0001014,2]
[340563575,1729484670199,68.21,0.00010145,2]
[340563576,1729484670220,260.48680685,0.00010145,2]
[340563577,1729484670241,256.03,0.00010145,2]
[340563578,1729484670263,500.27319315,0.00010145,2]
[340563579,1729484714106,23900.0,0.00010138,2]
[340563580,1729484734690,150.01680685,0.0001,2]
[340563581,1729484736183,245.25,0.00010163,2]
[340563582,1729484767774,307.92,0.00010281,2]
[340563583,1729484768495,1432.0,0.00010199,2]
[340563584,1729484778676,1048.59,8.306e-05,2]
[340563585,1729484801560,178.51,0.000102,2]
[340563586,1729484846823,201.31,0.00010241,2]
[340563587,1729484882511,250.0,0.00010262,2]
[340563589,1729484922381,-1048.59,0.0001057,2]
[340563590,1729484922402,-173.45519949,0.00010719,2]
[340563591,1729484922424,-250.0,0.00010811,2]
[340563592,1729484922446,-527.95480051,0.0001082,2]
[340563593,1729484924455,-472.04519949,0.0001082,2]
[340563594,1729484924475,-606.63,0.00010833,2]
[340563595,1729484924497,-358.13,0.00010838,2]
[340563596,1729484924518,-150.0,0.00010899,2]
[340563597,1729484924538,-413.19480051,0.000109,2]
[340563598,1729484926438,-2000.0,0.000109,2]
[340563599,1729484927680,-2000.0,0.000109,2]
[340563600,1729484928692,-123.85932749,0.000109,2]
[340563601,1729484928712,-1876.14067251,0.000109,2]
[340563602,1729484929713,-2000.0,0.000109,2]
[340563603,1729484930686,-2000.0,0.000109,2]
[340563604,1729484931666,-624.48092749,0.000109,2]
[340563605,1729484931688,-1375.51907251,0.000109,2]
[340563606,1729484932648,-364.13562749,0.000109,2]
[340563607,1729484932670,-1635.86437251,0.000109,2]
[340563608,1729484933648,-2000.0,0.000109,2]
[340563609,1729484934607,-381.56692749,0.000109,2]
[340563610,1729484934628,-1618.43307251,0.000109,2]
[340563611,1729484937214,-2000.0,0.000109,2]
[340563612,1729484938513,-1639.08502112,0.000109,2]
[340563613,1729484938542,-153.0,0.00010959,2]
[340563614,1729484938561,-207.91497888,0.00010959,2]
[340563615,1729484939903,-42.08502112,0.00010959,2]
[340563616,1729484939924,-1957.91497888,0.00010959,2]
[340563617,1729484946385,-300.0,0.00010958,2]
[340563618,1729484946404,-1200.0,0.00010959,2]
[340563692,1729485033040,-223.0,0.00010958,2]
[340563693,1729485033050,-150.0,0.00010958,2]
[340563694,1729485033061,-171.0998858,0.00010959,2]
[340563695,1729485033076,-665.27138989,0.00010959,2]
[340563696,1729485033092,-4960.45374543,0.00010959,2]
[340563697,1729485033102,-4384.52,0.00010959,2]
[340563698,1729485033112,-1105.24,0.00010959,2]
[340563699,1729485033123,-569.69,0.00010959,2]
[340563700,1729485033132,-1091.94,0.00010959,2]
[340563701,1729485033145,-635.8,0.00010959,2]
[340563702,1729485033155,-499.99,0.00010959,2]
[340563703,1729485033164,-1098.82,0.00010959,2]
[340563704,1729485033175,-2218.40104786,0.00010959,2]
[340563705,1729485033190,-2436.26895214,0.00010959,2]
[340563706,1729485033200,-150.0,0.00010959,2]
[340563707,1729485033209,-159.55,0.00010959,2]
[340563708,1729485033219,-150.0,0.00010959,2]
[340563709,1729485033229,-688.5,0.00010959,2]
[340563710,1729485033239,-611.4,0.00010959,2]
[340563711,1729485033249,-5611.87389998,0.00010995,2]
[340563712,1729485033260,-3615.76069095,0.00010995,2]
[340563713,1729485033272,-192.11072527,0.00010995,2]
[340563714,1729485033283,-760.54998461,0.00011,2]
[340563715,1729485033295,-2178.41395985,0.00011,2]
[340563718,1729485038497,-1067.48779237,0.00011,2]
[340563719,1729485038514,-585.79655138,0.00011,2]
[340563720,1729485038608,-5757.66,0.00011,2]
[340563721,1729485038620,-13036.41318923,0.00011,2]
[340563722,1729485038740,-1490.62865215,0.00011,2]
[340563723,1729485038751,-16760.34923926,0.00011,2]
[340563739,1729485040542,-41.75820026,0.00011,2]
[340563740,1729485040555,-786.81235203,0.00011,2]
[340563741,1729485040567,-2393.09162691,0.00011,2]
[340563742,1729485040583,-12877.38514603,0.00011,2]
[340563743,1729485040594,-2336.89922027,0.00011,2]
[340563744,1729485040699,-19097.59799677,0.00011,2]
[340563745,1729485040708,-79112.60926802,0.00011,2]
[340563746,1729485040717,-222.0,0.00011,2]
[340563747,1729485040726,-400.0,0.00011,2]
[340563748,1729485040736,-250.0,0.00011,2]
[340563749,1729485040745,-1925.8653817,0.00011003,2]
[340563750,1729485040755,-234.01,0.00011024,2]
[340563751,1729485040764,-1894.72,0.00011068,2]
[340563752,1729485040773,-500.0,0.00011173,2]
[340563753,1729485040783,-305.96,0.00011173,2]
[340563754,1729485040793,-165.09,0.00011182,2]
[340563755,1729485040802,-181.32,0.00011196,2]
[340563756,1729485040811,-249.12,0.00011291,2]
[340563757,1729485040821,-462.34,0.00011454,2]
[340563758,1729485040830,-462.34,0.00011457,2]
[340563759,1729485040839,-462.34,0.0001146,2]
[340563760,1729485040849,-462.34,0.00011463,2]
[340563761,1729485040858,-462.34,0.00011466,2]
[340563762,1729485040867,-462.34,0.00011469,2]
[340563763,1729485040876,-462.34,0.00011472,2]
[340563764,1729485040885,-462.34,0.00011475,2]
[340563765,1729485040894,-462.34,0.00011478,2]
[340563766,1729485040903,-441.74,0.00011479,2]
[340563767,1729485040912,-1016.9771,0.00011479,2]
[340563768,1729485040921,-462.34,0.00011481,2]
[340563769,1729485040930,-462.34,0.00011484,2]
[340563770,1729485040939,-462.34,0.00011487,2]
[340563771,1729485040948,-462.34,0.0001149,2]
[340563772,1729485040957,-462.34,0.00011493,2]
[340563773,1729485040966,-155.73,0.00011493,2]
[340563774,1729485040975,-462.34,0.00011496,2]
[340563775,1729485040984,-462.34,0.00011499,2]
[340563776,1729485040993,-212.54253472,0.00011501,2]
[340563777,1729485041002,-462.34,0.00011502,2]
[340563778,1729485041011,-462.34,0.00011505,2]
[340563779,1729485041020,-2751.0,0.00011507,2]
[340563780,1729485041029,-462.34,0.00011508,2]
[340563781,1729485041038,-462.34,0.00011511,2]
[340563782,1729485041047,-650.38,0.00011546,2]
[340563783,1729485041056,-1000.0,0.00011603,2]
[340563784,1729485041065,-1894.72,0.00011621,2]
[340563785,1729485041076,-200.0,0.00011622,2]
[340563786,1729485041085,-250.0,0.00011622,2]
[340563787,1729485041094,-255.0,0.00011999,2]
[340563788,1729485041103,-216.28,0.00012,2]
[340563789,1729485041112,-300.0,0.00012,2]
[340563790,1729485041121,-1894.72,0.00012174,2]
[340563791,1729485041130,-165.09,0.000123,2]
[340563792,1729485041139,-190.644,0.00012304,2]
[340563793,1729485041148,-190.644,0.00012309,2]
[340563794,1729485041157,-190.644,0.00012314,2]
[340563795,1729485041166,-151.0,0.00012329,2]
[340563796,1729485041175,-151.0,0.00012329,2]
[340563797,1729485041184,-151.0,0.00012329,2]
[340563798,1729485041193,-155.560613,0.00012329,2]
[340563799,1729485041202,-234.01,0.00012402,2]
[340563800,1729485041211,-167.0,0.00012445,2]
[340563801,1729485041220,-167.29,0.00012445,2]
[340563802,1729485041229,-5257.51809356,0.00012448,2]
[340563803,1729485041238,-172.714795,0.00012448,2]
[340563804,1729485041248,-154.616799,0.00012448,2]
[340563805,1729485041257,-151.707155,0.00012448,2]
[340563806,1729485041266,-154.281568,0.00012448,2]
[340563807,1729485041275,-1000.0,0.00012542,2]
[340563808,1729485041284,-1894.72,0.00012728,2]
[340563809,1729485041293,-151.711734,0.00012728,2]
[340563810,1729485041303,-1048.59,0.00012834,2]
[340563811,1729485041312,-179.99,0.00012893,2]
[340563812,1729485041321,-650.38,0.00012989,2]
[340563813,1729485041330,-1840.17994629,0.00013,4]
[340563814,1729485041339,-1000.0,0.00013053,2]
[340563815,1729485041348,-167.0,0.00013129,2]
[340563816,1729485041357,-433.0,0.00013139,2]
[340563817,1729485041366,-4057.0,0.00013166,2]
[340563818,1729485041375,-1894.72,0.00013281,2]
[340563819,1729485041384,-151.0,0.00013348,2]
[340563820,1729485041393,-152.359951,0.00013348,2]
[340563821,1729485041402,-151.0,0.00013348,2]
[340563822,1729485041411,-151.0,0.00013348,2]
[340563823,1729485041420,-152.257559,0.00013348,2]
[340563824,1729485041429,-160.123881,0.00013348,2]
[340563825,1729485041438,-151.0,0.00013348,2]
[340563826,1729485041448,-165.09,0.00013418,2]
[340563827,1729485041457,-3186.67,0.00013425,2]
[340563828,1729485041466,-152.750532,0.00013425,2]
[340563829,1729485041475,-500.0,0.00013698,2]
[340563830,1729485041484,-500.0,0.00013698,2]
[340563831,1729485041493,-500.0,0.00013698,2]
[340563832,1729485041502,-500.0,0.00013698,2]
[340563833,1729485041511,-637.87434101,0.00013698,2]
[340563834,1729485041520,-500.0,0.00013699,2]
[340563835,1729485041529,-500.0,0.00013699,2]
[340563836,1729485041538,-532.5441102,0.00013699,2]
[340563837,1729485041549,-2349.27,0.00013699,2]
[340563838,1729485041559,-500.0,0.00013699,2]
[340563839,1729485041568,-2354.76,0.00013699,2]
[340563840,1729485041578,-6416.61,0.00013699,2]
[340563841,1729485041587,-200.0,0.00013699,2]
[340563842,1729485041597,-613.16582122,0.000137,2]
[340563843,1729485041607,-234.01,0.0001378,2]
[340563844,1729485041616,-559.27002197,0.00013799,2]
[340563845,1729485041625,-151.0,0.000138,2]
[340563846,1729485041635,-151.0,0.000138,2]
[340563847,1729485041654,-151.0,0.000138,2]
[340563848,1729485041665,-152.386764,0.000138,2]
[340563849,1729485041674,-221.670248,0.000138,2]
[340563850,1729485041683,-167.0,0.00013814,2]
[340563851,1729485041693,-152.618699,0.0001389,2]
[340563852,1729485041702,-151.0,0.0001389,2]
[340563853,1729485041711,-151.0,0.0001389,2]
[340563854,1729485041720,-151.0,0.0001389,2]
[340563855,1729485041730,-151.0,0.0001389,2]
[340563856,1729485041739,-5257.51809356,0.00013996,2]
[340563857,1729485041748,-1432.0,0.00014279,2]
[340563858,1729485041758,-736.0,0.00014388,2]
[340563859,1729485041767,-650.38,0.00014432,2]
[340563860,1729485041777,-192.65552,0.0001448,2]
[340563861,1729485041787,-6895.42673881,0.0001448,2]
[340563862,1729485041796,-302.345337,0.0001449,2]
[340563863,1729485041807,-302.345337,0.0001449,2]
[340563864,1729485041816,-151.0,0.0001449,2]
[340563865,1729485041826,-151.0,0.0001449,2]
[340563866,1729485041835,-151.0,0.0001449,2]
[340563867,1729485041844,-151.0,0.0001449,2]
[340563868,1729485041854,-13820.50649006,0.0001449,2]
[340563869,1729485041868,-4477.87042098,0.0001449,2]
[340563870,1729485041879,-1999.85710139,0.0001449,2]
[340563882,1729485043526,-1791.82706729,0.0001449,2]
[340563883,1729485043542,-438.08232809,0.0001449,2]
[340563884,1729485043555,-337.65830248,0.0001449,2]
[340563889,1729485046255,-852.13856388,0.0001449,2]
[340563951,1729485803717,250.0,0.0001,2]
[340563974,1729486232533,-1038.24801312,0.000109,2]
[340563975,1729486232545,-438.60402629,0.000109,2]
[340563976,1729486232557,-461.35896059,0.000109,2]
[340563977,1729486232566,-338.64103941,0.000109,2]
[340563978,1729486232579,-64.59818351,0.000109,2]
[340563979,1729486232588,-158.95,0.00010959,2]
[340563980,1729486232597,-22717.8679464,0.00013339,2]
[340563981,1729486238467,-9943.44918905,0.00013339,2]
[340563982,1729486238478,-316.62500066,0.00013339,2]
[340563983,1729486238522,-3018.09199734,0.00013339,2]
[340563984,1729486238581,-14739.84586655,0.00013339,2]
[340563985,1729486238591,-150.0,0.00013342,2]
[340563986,1729486238601,-600.0,0.00013343,2]
[340563987,1729486238611,-200.0,0.00013699,2]
[340563988,1729486238621,-212.54253473,0.00014021,2]
[340563989,1729486238631,-150.0,0.00014193,2]
[340563990,1729486238640,-150.0,0.00014196,2]
[340563991,1729486238650,-150.0,0.000142,2]
[340563992,1729486238659,-150.0,0.00014201,2]
[340563993,1729486238668,-150.0,0.00014209,2]
[340563994,1729486238677,-932.0408387,0.00014209,2]
[340563995,1729486238689,-67.9491613,0.00014209,2]
[340563996,1729486238699,-919.50827795,0.00014209,2]
[340563997,1729486238798,-731.18172205,0.00014209,2]
[340563998,1729486238807,-87.59327795,0.00014213,2]
[340564015,1729486240469,-62.40672205,0.00014213,2]
[340564016,1729486240479,-150.0,0.00014216,2]
[340564017,1729486240488,-63.12771185,0.00014216,2]
[340564034,1729486243361,-250.0,0.00013342,2]
[340564036,1729486243371,-86.87228815,0.00014216,2]
[340564038,1729486243380,-150.0,0.00014216,2]
[340564040,1729486243389,-150.0,0.00014219,2]
[340564042,1729486243398,-150.0,0.00014222,2]
[340564044,1729486243407,-150.0,0.00014222,2]
[340564045,1729486243416,-150.0,0.00014224,2]
[340564047,1729486243425,-150.0,0.00014224,2]
[340564049,1729486243434,-151.0664732,0.00014225,2]
[340564051,1729486243443,-150.0,0.0001423,2]
[340564053,1729486243452,-150.0,0.00014234,2]
[340564055,1729486243461,-150.0,0.00014236,2]
[340564057,1729486243470,-150.0,0.00014238,2]
[340564059,1729486243480,-150.0,0.00014242,2]
[340564061,1729486243490,-150.0,0.00014242,2]
[340564063,1729486243499,-150.0,0.00014247,2]
[340564065,1729486243509,-1500.0,0.00014248,2]
[340564067,1729486243518,-150.0,0.00014248,2]
[340564069,1729486243528,-150.0,0.00014248,2]
[340564072,1729486243540,-152.61976327,0.00014252,2]
[340564074,1729486243549,-150.0,0.00014255,2]
[340564075,1729486243558,-150.0,0.00014265,2]
[340564077,1729486243568,-150.0,0.00014269,2]
[340564079,1729486243577,-1170.6278753,0.00014273,2]
[340564082,1729486243596,-329.3721247,0.00014273,2]
[340564084,1729486243607,-150.0,0.00014274,2]
[340564086,1729486243616,-150.0,0.00014277,2]
[340564088,1729486243625,-150.0,0.00014283,2]
[340564090,1729486243635,-150.0,0.00014286,2]
[340564092,1729486243644,-150.0,0.00014287,2]
[340564094,1729486243653,-150.0,0.0001429,2]
[340564096,1729486243662,-150.0,0.00014291,2]
[340564097,1729486243671,-150.0,0.00014292,2]
[340564099,1729486243680,-150.0,0.00014292,2]
[340564101,1729486243689,-1500.0,0.00014292,2]
[340564103,1729486243699,-150.0,0.00014293,2]
[340564105,1729486243708,-150.0,0.00014298,2]
[340564107,1729486243717,-150.0,0.00014299,2]
[340564109,1729486243726,-150.0,0.000143,2]
[340564111,1729486243735,-150.0,0.00014301,2]
[340564114,1729486243744,-150.0,0.00014303,2]
[340564115,1729486243753,-150.0,0.00014304,2]
[340564117,1729486243762,-150.0,0.00014304,2]
[340564119,1729486243771,-150.0,0.00014305,2]
[340564121,1729486243781,-150.0,0.00014305,2]
[340564123,1729486243790,-1500.0,0.00014306,2]
[340564125,1729486243799,-150.0,0.00014307,2]
[340564127,1729486243809,-150.0,0.00014308,2]
[340564128,1729486243819,-150.0,0.0001431,2]
[340564129,1729486243828,-150.0,0.0001431,2]
[340564131,1729486243837,-150.0,0.0001431,2]
[340564133,1729486243845,-150.0,0.0001431,2]
[340564135,1729486243855,-150.0,0.00014313,2]
[340564137,1729486243864,-150.0,0.00014315,2]
[340564139,1729486243873,-150.0,0.00014317,2]
[340564141,1729486243883,-1519.84382442,0.00014318,2]
[340564143,1729486243892,-150.0,0.00014319,2]
[340564145,1729486243901,-150.0,0.00014322,2]
[340564147,1729486243911,-150.0,0.00014327,2]
[340564149,1729486243920,-150.0,0.00014335,2]
[340564151,1729486243929,-150.0,0.00014336,2]
[340564153,1729486243938,-150.0,0.00014337,2]
[340564155,1729486243947,-150.0,0.00014347,2]
[340564157,1729486243957,-150.0,0.00014347,2]
[340564159,1729486243966,-150.0,0.00014347,2]
[340564161,1729486243975,-150.0,0.00014347,2]
[340564163,1729486243985,-150.0,0.00014349,2]
[340564166,1729486243993,-150.0,0.00014349,2]
[340564167,1729486244003,-150.0,0.00014353,2]
[340564169,1729486244013,-150.0,0.00014354,2]
[340564171,1729486244022,-150.0,0.00014358,2]